[Event "Championnat du monde jeunes U12F"]
[Date "2024.11.26"]
[White "Xikmatkhonova, Mokhinur"]
[Black "Illes-Nagy, Nora"]
[WhiteElo "1726"]
[BlackElo "1803"]
[Round "11.12"]
[Result "1-0"]
[TimeControl "5400+30"]

1. e4 {[%clk 1:30:44]} 1... c5 {[%clk 1:30:54]} 2. Nf3 {[%clk 1:31:09]} 2... e6
{[%clk 1:31:20]} 3. d4 {[%clk 1:31:34]} 3... cxd4 {[%clk 1:31:46]} 4. Nxd4
{[%clk 1:32:00]} 4... Nc6 {[%clk 1:32:12]} 5. Nc3 {[%clk 1:31:54]} 5... Qc7
{[%clk 1:32:36]} 6. Be2 {[%clk 1:31:53]} 6... a6 {[%clk 1:32:53]} 7. O-O {[%clk
1:31:47]} 7... Nf6 {[%clk 1:33:02]} 8. Be3 {[%clk 1:31:51]} 8... Bb4 {[%clk
1:33:12]} 9. Na4 {[%clk 1:30:24]} 9... O-O {[%clk 1:32:15]} 10. Nxc6 {[%clk
1:21:44]} 10... bxc6 {[%clk 1:32:28]} 11. Nb6 {[%clk 1:21:40]} 11... Rb8 {[%clk
1:32:37]} 12. Nxc8 {[%clk 1:21:39]} 12... Rfxc8 {[%clk 1:32:54]} 13. Bxa6 {[%clk
1:20:26]} 13... Re8 {[%clk 1:33:16]} 14. Bd3 {[%clk 1:19:55]} 14... Bd6 {[%clk
1:33:32]} 15. f4 {[%clk 1:12:09]} 15... e5 {[%clk 1:33:29]} 16. f5 {[%clk
1:06:39]} 16... Rxb2 {[%clk 1:33:21]} 17. g4 {[%clk 1:01:59]} 17... Reb8 {[%clk
1:25:21]} 18. g5 {[%clk 0:49:51]} 18... Ne8 {[%clk 1:25:28]} 19. Qh5 {[%clk
0:36:35]} 19... Bf8 {[%clk 1:18:29]} 20. g6 {[%clk 0:24:38]} 20... Nf6 {[%clk
1:15:59]} 21. gxh7+ {[%clk 0:23:09]} 21... Kh8 {[%clk 1:15:57]} 22. Qxf7 {[%clk
0:22:54]} 22... Qd8 {[%clk 1:13:35]} 23. Bg5 {[%clk 0:10:31]} 23... Bc5+ {[%clk
1:03:47]} 24. Kh1 {[%clk 0:07:52]} 24... d5 {[%clk 1:02:33]} 25. Qg6 {[%clk
0:01:24]} 25... R2b4 {[%clk 0:59:56]} 26. a3 {[%clk 0:01:09]} 26... R4b7 {[%clk
0:59:21]} 27. Rfd1 {[%clk 0:00:39]} 27... Bd4 {[%clk 0:58:18]} 28. Rac1 {[%clk
0:00:34]} 28... Bb2 {[%clk 0:57:44]} 29. Rb1 {[%clk 0:01:01]} 29... Bxa3 {[%clk
0:55:26]} 30. Rxb7 {[%clk 0:01:30]} 30... Rxb7 {[%clk 0:55:51]} 31. Bxf6 {[%clk
0:00:36]} 31... Qxf6 {[%clk 0:55:21]} 32. Ra1 {[%clk 0:00:34]} 32... Ra7 {[%clk
0:46:18]} 33. Rb1 {[%clk 0:00:35]} 33... Bd6 {[%clk 0:45:44]} 34. Qe8+ {[%clk
0:00:35]} 34... Kxh7 {[%clk 0:45:55]} 35. Qxc6 {[%clk 0:00:33]} 35... dxe4
{[%clk 0:44:29]} 36. Qxe4 {[%clk 0:00:34]} 36... Bc5 {[%clk 0:43:25]} 37. Qg4
{[%clk 0:00:32]} 37... Qc6+ {[%clk 0:38:32]} 38. Be4 {[%clk 0:00:35]} 38... Ra4
{[%clk 0:36:11]} 39. Qh5+ {[%clk 0:00:32]} 39... Qh6 {[%clk 0:36:30]} 40. Qg6+
{[%clk 0:00:32]} 40... Qxg6 {[%clk 0:36:46]} 41. fxg6+ {[%clk 0:01:00]} 41...
Kh6 {[%clk 0:36:47]} 42. Re1 {[%clk 0:00:35]} 42... Bd4 {[%clk 0:36:19]} 43. Bd3
{[%clk 0:00:34]} 43... Ra1 {[%clk 0:36:39]} 44. Rxa1 {[%clk 0:00:50]} 44... Bxa1
{[%clk 0:37:03]} 45. Kg2 {[%clk 0:00:57]} 45... Kg5 {[%clk 0:37:21]} 46. Kf3
{[%clk 0:00:43]} 46... Bd4 {[%clk 0:37:29]} 47. Be4 {[%clk 0:00:35]} 47... Bc3
{[%clk 0:37:44]} 48. Bd3 {[%clk 0:00:33]} 48... Kf6 {[%clk 0:37:47]} 49. Kg4
{[%clk 0:00:52]} 49... Bd4 {[%clk 0:37:37]} 50. Be4 {[%clk 0:01:21]} 50... Bc3
{[%clk 0:37:59]} 51. h3 {[%clk 0:01:09]} 51... Bd4 {[%clk 0:38:20]} 52. c4
{[%clk 0:00:45]} 52... Bc5 {[%clk 0:38:37]} 53. Bd3 {[%clk 0:00:42]} 53... Bd4
{[%clk 0:39:02]} 54. Kf3 {[%clk 0:00:40]} 54... Ke6 {[%clk 0:39:13]} 55. Ke4
{[%clk 0:00:46]} 55... Bc5 {[%clk 0:39:29]} 56. h4 {[%clk 0:00:47]} 56... Be7
{[%clk 0:39:36]} 57. h5 {[%clk 0:01:06]} 57... Bc5 {[%clk 0:38:20]} 58. Be2
{[%clk 0:01:15]} 58... Bf8 {[%clk 0:38:06]} 59. Bg4+ {[%clk 0:00:51]} 59... Kf6
{[%clk 0:25:56]} 60. Kd5 {[%clk 0:01:04]} 60... Bb4 {[%clk 0:25:39]} 61. c5
{[%clk 0:00:39]} 61... Ke7 {[%clk 0:25:11]} 62. Bf3 {[%clk 0:00:33]} 62... Bc3
{[%clk 0:22:26]} 63. c6 {[%clk 0:00:34]} 63... e4 {[%clk 0:21:33]} 64. Bxe4
{[%clk 0:00:40]} 64... Kd8 {[%clk 0:21:12]} 65. Kd6 {[%clk 0:00:49]} 65... Bb4+
{[%clk 0:21:34]} 66. Ke6 {[%clk 0:01:06]} 66... Bc3 {[%clk 0:21:53]} 67. Kf7
{[%clk 0:01:21]} 67... Kc7 {[%clk 0:20:58]} 68. h6 {[%clk 0:01:41]} 68... gxh6
{[%clk 0:21:21]} 69. g7 {[%clk 0:02:10]} 69... Bxg7 {[%clk 0:21:27]} 70. Kxg7
{[%clk 0:02:39]} 70... h5 {[%clk 0:21:50]} 71. Kf6 {[%clk 0:02:57]} 71... h4
{[%clk 0:21:57]} 72. Ke6 {[%clk 0:03:18]} 72... h3 {[%clk 0:22:19]} 73. Kd5
{[%clk 0:03:39]} 73... h2 {[%clk 0:22:45]} 74. Bg2 {[%clk 0:03:50]} 74... Kc8
{[%clk 0:23:11]} 75. Kd6 {[%clk 0:04:12]} 75... Kd8 {[%clk 0:23:39]} 76. c7+
{[%clk 0:04:25]} 76... Kc8 {[%clk 0:24:07]} 77. Bh3+ {[%clk 0:04:50]} 77... Kb7
{[%clk 0:24:34]} 78. c8=Q+ {[%clk 0:05:09]} 78... Kb6 {[%clk 0:24:58]} 79. Qc5+
{[%clk 0:05:30]} 79... Kb7 {[%clk 0:25:24]} 80. Bc8+ 1-0

[Variant "Standard"]
[Site "Europe Echecs"]

[Event "Championnat du monde jeunes U12F"]
[Date "2024.11.26"]
[White "Jordan, Christina"]
[Black "Allahverdi, Zahra"]
[WhiteElo "1803"]
[BlackElo "1718"]
[Round "11.13"]
[Result "1-0"]
[TimeControl "5400+30"]

1. e4 {[%clk 1:30:57]} 1... c5 {[%clk 1:30:36]} 2. Nf3 {[%clk 1:31:15]} 2... a6
{[%clk 1:30:32]} 3. c3 {[%clk 1:30:39]} 3... Nf6 {[%clk 1:30:27]} 4. e5 {[%clk
1:30:05]} 4... Nd5 {[%clk 1:30:45]} 5. d4 {[%clk 1:29:16]} 5... cxd4 {[%clk
1:30:14]} 6. cxd4 {[%clk 1:29:18]} 6... e6 {[%clk 1:30:17]} 7. Bc4 {[%clk
1:24:51]} 7... Nb6 {[%clk 1:29:14]} 8. Bb3 {[%clk 1:23:58]} 8... d6 {[%clk
1:28:11]} 9. O-O {[%clk 1:19:12]} 9... Be7 {[%clk 1:27:14]} 10. Nc3 {[%clk
1:15:10]} 10... O-O {[%clk 1:25:53]} 11. Be3 {[%clk 1:09:05]} 11... Nc6 {[%clk
1:24:18]} 12. Re1 {[%clk 1:03:08]} 12... Na5 {[%clk 1:21:06]} 13. Bc2 {[%clk
0:57:29]} 13... Nac4 {[%clk 1:16:20]} 14. Qd3 {[%clk 0:55:55]} 14... g6 {[%clk
1:16:38]} 15. Bh6 {[%clk 0:53:08]} 15... Nxb2 {[%clk 1:15:28]} 16. Qe2 {[%clk
0:52:50]} 16... Re8 {[%clk 1:15:15]} 17. Bb3 {[%clk 0:53:00]} 17... N2c4 {[%clk
1:13:14]} 18. Bxc4 {[%clk 0:53:22]} 18... Qc7 {[%clk 1:13:20]} 19. exd6 {[%clk
0:50:36]} 19... Qxd6 {[%clk 1:09:02]} 20. Ne4 {[%clk 0:48:23]} 20... Qd8 {[%clk
1:09:09]} 21. Bb3 {[%clk 0:47:53]} 21... Nd5 {[%clk 1:08:26]} 22. Bxd5 {[%clk
0:47:58]} 22... Qxd5 {[%clk 1:08:38]} 23. Rec1 {[%clk 0:42:36]} 23... Bd7 {[%clk
1:06:12]} 24. Rc5 {[%clk 0:41:13]} 24... Bxc5 {[%clk 1:04:34]} 25. Nf6+ {[%clk
0:41:39]} 25... Kh8 {[%clk 1:04:58]} 26. Nxd5 {[%clk 0:42:06]} 26... exd5 {[%clk
1:05:19]} 27. Qd2 {[%clk 0:40:21]} 27... Bf8 {[%clk 1:05:09]} 28. Ne5 {[%clk
0:37:37]} 28... Be6 {[%clk 1:04:39]} 29. Bxf8 {[%clk 0:32:55]} 29... Rxf8 {[%clk
1:05:01]} 30. h4 {[%clk 0:32:25]} 30... Kg7 {[%clk 1:04:22]} 31. h5 {[%clk
0:31:50]} 31... h6 {[%clk 1:04:11]} 32. hxg6 {[%clk 0:29:30]} 32... fxg6 {[%clk
1:04:20]} 33. Qb4 {[%clk 0:29:53]} 1-0

[Variant "Standard"]
[Site "Europe Echecs"]

[Event "Championnat du monde jeunes U12F"]
[Date "2024.11.26"]
[White "Rzadkowska, Kaja"]
[Black "Sabou, Stefania Theodora"]
[WhiteElo "1798"]
[BlackElo "1736"]
[Round "11.14"]
[Result "1/2-1/2"]
[TimeControl "5400+30"]

1. e4 {[%clk 1:30:59]} 1... c5 {[%clk 1:30:52]} 2. Nf3 {[%clk 1:31:24]} 2... Nc6
{[%clk 1:31:17]} 3. d4 {[%clk 1:31:50]} 3... cxd4 {[%clk 1:31:42]} 4. Nxd4
{[%clk 1:32:15]} 4... g6 {[%clk 1:32:07]} 5. c4 {[%clk 1:32:37]} 5... Nf6 {[%clk
1:32:19]} 6. Nc3 {[%clk 1:33:00]} 6... d6 {[%clk 1:32:40]} 7. Be2 {[%clk
1:32:02]} 7... Nxd4 {[%clk 1:32:11]} 8. Qxd4 {[%clk 1:32:21]} 8... Bg7 {[%clk
1:32:36]} 9. Be3 {[%clk 1:32:13]} 9... O-O {[%clk 1:32:56]} 10. Qd2 {[%clk
1:31:49]} 10... a5 {[%clk 1:32:51]} 11. O-O {[%clk 1:30:37]} 11... a4 {[%clk
1:32:25]} 12. Rac1 {[%clk 1:27:28]} 12... Qa5 {[%clk 1:29:41]} 13. Rfd1 {[%clk
1:21:58]} 13... Be6 {[%clk 1:27:05]} 14. f3 {[%clk 1:10:48]} 14... Rfc8 {[%clk
1:22:16]} 15. b3 {[%clk 1:07:44]} 15... axb3 {[%clk 1:21:52]} 16. axb3 {[%clk
1:07:59]} 16... Qb4 {[%clk 1:21:12]} 17. Qc2 {[%clk 1:03:53]} 17... Ra3 {[%clk
1:03:53]} 18. Rb1 {[%clk 0:55:43]} 18... b5 {[%clk 0:56:06]} 19. e5 {[%clk
0:40:39]} 19... Nd7 {[%clk 0:38:41]} 20. Nd5 {[%clk 0:36:13]} 20... Bxd5 {[%clk
0:38:59]} 21. Rxd5 {[%clk 0:36:20]} 21... Ra6 {[%clk 0:27:05]} 22. Rxb5 {[%clk
0:25:09]} 22... Qxb5 {[%clk 0:27:04]} 23. cxb5 {[%clk 0:25:33]} 23... Rxc2
{[%clk 0:27:29]} 24. bxa6 {[%clk 0:25:55]} 24... Rxe2 {[%clk 0:27:42]} 25. a7
{[%clk 0:20:57]} 25... Ra2 {[%clk 0:27:57]} 26. b4 {[%clk 0:15:15]} 26... Bxe5
{[%clk 0:22:50]} 27. Rc1 {[%clk 0:07:56]} 27... Nc5 {[%clk 0:22:57]} 28. bxc5
{[%clk 0:07:47]} 28... Rxa7 {[%clk 0:23:14]} 29. cxd6 {[%clk 0:05:06]} 29... Rd7
{[%clk 0:23:36]} 30. Bh6 {[%clk 0:04:19]} 30... f5 {[%clk 0:23:30]} 31. dxe7
{[%clk 0:04:14]} 31... Bd4+ {[%clk 0:22:44]} 32. Kf1 {[%clk 0:04:32]} 32... Rxe7
{[%clk 0:21:50]} 33. Rc8+ {[%clk 0:04:41]} 33... Kf7 {[%clk 0:22:15]} 1/2-1/2

[Variant "Standard"]
[Site "Europe Echecs"]

[Event "Championnat du monde jeunes U12F"]
[Date "2024.11.26"]
[White "Sri Darshini T"]
[Black "Aadya Ranganath"]
[WhiteElo "1681"]
[BlackElo "1753"]
[Round "11.15"]
[Result "1-0"]
[TimeControl "5400+30"]

1. d4 {[%clk 1:30:59]} 1... Nf6 {[%clk 1:30:56]} 2. c4 {[%clk 1:31:25]} 2... g6
{[%clk 1:31:22]} 3. Nc3 {[%clk 1:31:52]} 3... Bg7 {[%clk 1:31:45]} 4. e4 {[%clk
1:32:17]} 4... d6 {[%clk 1:32:09]} 5. Nf3 {[%clk 1:32:42]} 5... O-O {[%clk
1:32:33]} 6. Be2 {[%clk 1:33:09]} 6... e5 {[%clk 1:32:50]} 7. O-O {[%clk
1:33:34]} 7... Nc6 {[%clk 1:33:17]} 8. d5 {[%clk 1:33:59]} 8... Ne7 {[%clk
1:33:40]} 9. b4 {[%clk 1:34:26]} 9... a5 {[%clk 1:32:08]} 10. Ba3 {[%clk
1:34:44]} 10... b6 {[%clk 1:20:56]} 11. bxa5 {[%clk 1:33:09]} 11... Rxa5 {[%clk
1:21:14]} 12. Bb4 {[%clk 1:33:30]} 12... Ra8 {[%clk 1:21:19]} 13. a4 {[%clk
1:33:19]} 13... Nd7 {[%clk 1:18:48]} 14. a5 {[%clk 1:28:41]} 14... f5 {[%clk
1:15:51]} 15. axb6 {[%clk 1:18:38]} 15... Rxa1 {[%clk 1:15:55]} 16. Qxa1 {[%clk
1:19:05]} 16... Nxb6 {[%clk 1:16:14]} 17. Nd2 {[%clk 1:09:39]} 17... Bh6 {[%clk
1:04:42]} 18. Qa2 {[%clk 1:06:13]} 18... Qd7 {[%clk 0:52:53]} 19. c5 {[%clk
0:59:28]} 19... Bxd2 {[%clk 0:52:05]} 20. Bb5 {[%clk 0:54:45]} 20... Qd8 {[%clk
0:50:54]} 21. cxd6 {[%clk 0:55:01]} 21... cxd6 {[%clk 0:50:29]} 22. Qxd2 {[%clk
0:55:16]} 22... Bb7 {[%clk 0:48:11]} 23. Ba5 {[%clk 0:46:38]} 23... Nec8 {[%clk
0:40:39]} 24. Na4 {[%clk 0:43:05]} 24... Rf7 {[%clk 0:32:02]} 25. Qb4 {[%clk
0:36:02]} 25... fxe4 {[%clk 0:29:00]} 26. Nxb6 {[%clk 0:35:58]} 26... Nxb6
{[%clk 0:29:24]} 27. Bc4 {[%clk 0:36:02]} 27... e3 {[%clk 0:28:02]} 28. Qxb6
{[%clk 0:32:19]} 28... Qxb6 {[%clk 0:27:22]} 29. Bxb6 {[%clk 0:32:43]} 29... Rf4
{[%clk 0:27:41]} 30. Rc1 {[%clk 0:30:56]} 30... exf2+ {[%clk 0:27:32]} 31. Bxf2
{[%clk 0:31:23]} 31... Kg7 {[%clk 0:27:10]} 32. Be3 {[%clk 0:31:27]} 32... Rf7
{[%clk 0:27:16]} 33. Rb1 {[%clk 0:29:23]} 33... Rc7 {[%clk 0:26:25]} 34. Rb4
{[%clk 0:29:26]} 34... Kf6 {[%clk 0:26:33]} 35. Kf2 {[%clk 0:29:10]} 35... e4
{[%clk 0:26:38]} 36. Bd4+ {[%clk 0:29:09]} 36... Kf5 {[%clk 0:27:02]} 37. Ke3
{[%clk 0:29:01]} 37... g5 {[%clk 0:27:08]} 38. Be2 {[%clk 0:26:22]} 38... h5
{[%clk 0:27:07]} 39. Bxh5 {[%clk 0:25:24]} 39... g4 {[%clk 0:27:26]} 40. h3
{[%clk 0:21:56]} 40... gxh3 {[%clk 0:27:11]} 41. gxh3 {[%clk 0:22:18]} 41... Re7
{[%clk 0:27:06]} 42. Bg4+ {[%clk 0:22:13]} 42... Kg5 {[%clk 0:27:29]} 43. Rb6
{[%clk 0:22:19]} 43... Rc7 {[%clk 0:26:58]} 44. Rxd6 {[%clk 0:22:33]} 44... Rf7
{[%clk 0:27:01]} 45. Bb6 {[%clk 0:22:13]} 45... Kh4 {[%clk 0:27:17]} 46. Rg6
{[%clk 0:21:10]} 46... Rf8 {[%clk 0:27:03]} 47. d6 {[%clk 0:20:54]} 47... Bc8
{[%clk 0:25:54]} 48. Bxc8 {[%clk 0:18:16]} 48... Rxc8 {[%clk 0:26:09]} 49. d7
{[%clk 0:18:41]} 49... Rc3+ {[%clk 0:26:33]} 50. Kxe4 {[%clk 0:18:50]} 50...
Rc4+ {[%clk 0:27:00]} 51. Bd4 {[%clk 0:18:41]} 51... Kh5 {[%clk 0:27:06]} 52.
Rg1 {[%clk 0:18:43]} 52... Rc6 {[%clk 0:26:27]} 53. d8=Q {[%clk 0:17:56]} 53...
Re6+ {[%clk 0:26:53]} 54. Kd3 {[%clk 0:18:11]} 54... Re3+ {[%clk 0:26:53]} 55.
Kxe3 {[%clk 0:18:34]} 55... Kh6 {[%clk 0:27:20]} 56. Qh8# {[%clk 0:18:58]} 1-0

[Variant "Standard"]
[Site "Europe Echecs"]

[Event "Championnat du monde jeunes U12F"]
[Date "2024.11.26"]
[White "Zavivaeva, Kristina"]
[Black "Telyuk, Anastasiya"]
[WhiteElo "1775"]
[BlackElo "1603"]
[Round "11.16"]
[Result "1-0"]
[TimeControl "5400+30"]

1. e4 {[%clk 1:30:54]} 1... c5 {[%clk 1:30:54]} 2. b4 {[%clk 1:31:18]} 2... cxb4
{[%clk 1:26:32]} 3. a3 {[%clk 1:31:39]} 3... e6 {[%clk 1:24:55]} 4. d4 {[%clk
1:31:37]} 4... d5 5. e5 {[%clk 1:31:41]} 5... Nc6 {[%clk 1:19:57]} 6. Nf3 {[%clk
1:31:34]} 6... bxa3 {[%clk 1:17:14]} 7. c3 {[%clk 1:31:21]} 7... a6 {[%clk
1:10:19]} 8. Bd3 {[%clk 1:30:41]} 8... b5 {[%clk 1:00:33]} 9. Bxa3 {[%clk
1:27:05]} 9... Bxa3 {[%clk 0:58:00]} 10. Nxa3 {[%clk 1:25:57]} 10... Rb8 {[%clk
0:56:30]} 11. O-O {[%clk 1:24:10]} 11... Nge7 {[%clk 0:53:25]} 12. Ng5 {[%clk
1:18:55]} 12... Nf5 {[%clk 0:33:00]} 13. Qh5 {[%clk 1:14:08]} 13... g6 {[%clk
0:28:30]} 14. Qg4 {[%clk 1:13:41]} 14... b4 {[%clk 0:21:34]} 15. Nc2 {[%clk
1:10:51]} 15... bxc3 {[%clk 0:18:30]} 16. Ra3 {[%clk 1:05:59]} 16... h6 {[%clk
0:15:20]} 17. Nf3 {[%clk 1:06:03]} 17... O-O {[%clk 0:10:41]} 18. Rxc3 {[%clk
1:05:16]} 18... Bb7 {[%clk 0:09:09]} 19. Rb1 {[%clk 1:04:13]} 19... Qe7 {[%clk
0:09:08]} 20. Qf4 {[%clk 1:02:18]} 20... Kg7 {[%clk 0:05:49]} 21. g4 {[%clk
0:59:20]} 21... Nh4 {[%clk 0:03:59]} 22. Qf6+ {[%clk 0:58:07]} 22... Qxf6 {[%clk
0:02:06]} 23. exf6+ {[%clk 0:58:32]} 23... Kxf6 {[%clk 0:02:27]} 24. Nxh4 {[%clk
0:58:57]} 24... Rfc8 {[%clk 0:02:01]} 25. Kg2 {[%clk 0:57:58]} 25... Rc7 {[%clk
0:01:19]} 26. Bxa6 {[%clk 0:57:30]} 26... Bxa6 {[%clk 0:01:18]} 27. Rxb8 {[%clk
0:57:53]} 27... Bc4 {[%clk 0:01:35]} 28. Rb6 {[%clk 0:57:57]} 28... Ne7 {[%clk
0:01:32]} 29. Kg3 {[%clk 0:57:21]} 29... h5 {[%clk 0:01:17]} 30. f4 {[%clk
0:55:24]} 30... hxg4 {[%clk 0:01:08]} 31. Ne3 {[%clk 0:55:44]} 31... g5 {[%clk
0:01:09]} 32. Nxg4+ {[%clk 0:55:20]} 32... Kg7 {[%clk 0:01:24]} 33. fxg5 {[%clk
0:55:14]} 33... Nf5+ {[%clk 0:01:41]} 34. Nxf5+ {[%clk 0:55:28]} 34... exf5
{[%clk 0:02:00]} 35. Ne5 {[%clk 0:55:44]} 1-0

[Variant "Standard"]
[Site "Europe Echecs"]

[Event "Championnat du monde jeunes U12F"]
[Date "2024.11.26"]
[White "Siddhi Rao"]
[Black "Sunea, Sara Maria"]
[WhiteElo "1677"]
[BlackElo "1823"]
[Round "11.17"]
[Result "1/2-1/2"]
[TimeControl "5400+30"]

1. e4 {[%clk 1:30:58]} 1... e6 {[%clk 1:30:54]} 2. d4 {[%clk 1:31:25]} 2... d5
{[%clk 1:31:19]} 3. Nd2 {[%clk 1:31:52]} 3... Nc6 {[%clk 1:31:38]} 4. Ngf3
{[%clk 1:31:53]} 4... Nf6 {[%clk 1:31:56]} 5. e5 {[%clk 1:32:06]} 5... Nd7
{[%clk 1:32:19]} 6. c3 {[%clk 1:32:26]} 6... f6 {[%clk 1:32:14]} 7. Bb5 {[%clk
1:29:42]} 7... Be7 {[%clk 1:28:54]} 8. O-O {[%clk 1:16:31]} 8... O-O {[%clk
1:26:47]} 9. Nb3 {[%clk 1:14:50]} 9... fxe5 {[%clk 1:19:35]} 10. Bxc6 {[%clk
1:12:04]} 10... bxc6 {[%clk 1:19:29]} 11. Na5 {[%clk 0:58:47]} 11... e4 {[%clk
1:17:37]} 12. Nxc6 {[%clk 0:59:10]} 12... Qe8 {[%clk 1:17:56]} 13. Nxe7+ {[%clk
0:52:22]} 13... Qxe7 {[%clk 1:16:50]} 14. Nd2 {[%clk 0:43:16]} 14... c5 {[%clk
1:07:53]} 15. Nb3 {[%clk 0:35:23]} 15... Qh4 {[%clk 0:57:36]} 16. Be3 {[%clk
0:32:17]} 16... c4 {[%clk 0:49:57]} 17. Nc1 {[%clk 0:25:57]} 17... Rf6 {[%clk
0:44:49]} 18. Ne2 {[%clk 0:21:06]} 18... g5 {[%clk 0:37:22]} 19. Ng3 {[%clk
0:13:35]} 19... Rh6 {[%clk 0:32:38]} 20. h3 {[%clk 0:13:57]} 20... Nf6 {[%clk
0:32:04]} 21. Nh1 {[%clk 0:06:57]} 21... Bd7 {[%clk 0:21:03]} 22. f3 {[%clk
0:06:17]} 22... Kh8 {[%clk 0:15:19]} 23. Qe1 {[%clk 0:05:13]} 23... Rg6 {[%clk
0:12:30]} 24. Qxh4 {[%clk 0:02:10]} 24... gxh4 {[%clk 0:12:52]} 25. Kf2 {[%clk
0:01:58]} 25... Rb8 {[%clk 0:12:00]} 26. Rab1 {[%clk 0:01:34]} 26... Ba4 {[%clk
0:12:02]} 27. Bf4 {[%clk 0:01:00]} 27... Rb7 {[%clk 0:11:46]} 28. Rfc1 {[%clk
0:01:09]} 28... Rbg7 {[%clk 0:10:58]} 29. Rg1 {[%clk 0:01:15]} 29... Bc2 {[%clk
0:10:39]} 30. Rbc1 {[%clk 0:01:41]} 30... Bd3 {[%clk 0:11:04]} 31. b4 {[%clk
0:01:17]} 31... a5 {[%clk 0:09:46]} 32. a3 {[%clk 0:00:52]} 32... axb4 {[%clk
0:08:49]} 1/2-1/2

[Variant "Standard"]
[Site "Europe Echecs"]

[Event "Championnat du monde jeunes U12F"]
[Date "2024.11.26"]
[White "Sevastsyanchuk, Anastasiya"]
[Black "Gailevska, Milana"]
[WhiteElo "1595"]
[BlackElo "1698"]
[Round "11.18"]
[Result "1-0"]
[TimeControl "5400+30"]

1. e4 e6 {[%clk 1:30:53]} 2. d4 {[%clk 1:31:19]} 2... d5 {[%clk 1:31:21]} 3. Nd2
{[%clk 1:31:35]} 3... c5 {[%clk 1:31:48]} 4. exd5 {[%clk 1:31:50]} 4... exd5
{[%clk 1:32:13]} 5. Ngf3 {[%clk 1:32:06]} 5... Nc6 {[%clk 1:32:32]} 6. Bb5
{[%clk 1:32:22]} 6... Bd6 {[%clk 1:32:50]} 7. O-O {[%clk 1:32:33]} 7... Ne7
{[%clk 1:33:03]} 8. dxc5 {[%clk 1:29:58]} 8... Bxc5 {[%clk 1:33:22]} 9. Nb3
{[%clk 1:30:19]} 9... Bd6 {[%clk 1:33:33]} 10. Bg5 {[%clk 1:27:37]} 10... O-O
{[%clk 1:32:49]} 11. Nbd4 {[%clk 1:25:38]} 11... Qc7 {[%clk 1:31:11]} 12. Ba4
{[%clk 1:24:55]} 12... Nxd4 {[%clk 1:22:30]} 13. Qxd4 {[%clk 1:25:15]} 13... f6
{[%clk 1:18:58]} 14. Bh4 {[%clk 1:21:43]} 14... Be5 {[%clk 1:13:44]} 15. Nxe5
{[%clk 1:20:10]} 15... fxe5 {[%clk 1:13:52]} 16. Qd2 {[%clk 1:20:26]} 16... Be6
{[%clk 1:10:17]} 17. Bb3 {[%clk 1:15:14]} 17... Kh8 {[%clk 1:01:59]} 18. Bxe7
{[%clk 1:14:16]} 18... Qxe7 {[%clk 1:02:20]} 19. Bxd5 {[%clk 1:14:40]} 19...
Rad8 {[%clk 1:01:55]} 20. c4 {[%clk 1:15:03]} 20... b5 {[%clk 1:00:45]} 21. b3
{[%clk 1:15:25]} 21... bxc4 {[%clk 1:00:58]} 22. bxc4 {[%clk 1:15:51]} 22... Qc5
{[%clk 1:00:09]} 23. Rad1 {[%clk 1:16:02]} 23... Bxd5 {[%clk 0:58:44]} 24. cxd5
{[%clk 1:16:26]} 24... Rd6 {[%clk 0:58:50]} 25. Rfe1 {[%clk 1:16:39]} 25... e4
{[%clk 0:58:25]} 26. Qd4 {[%clk 1:16:22]} 26... Qc2 {[%clk 0:43:57]} 27. Qxa7
{[%clk 1:14:53]} 27... Rdf6 {[%clk 0:43:35]} 28. Rc1 {[%clk 1:11:03]} 28... Qd2
{[%clk 0:31:00]} 29. Red1 {[%clk 1:10:54]} 29... Qb2 {[%clk 0:29:34]} 30. Rf1
{[%clk 1:10:57]} 30... h6 {[%clk 0:26:00]} 31. Rcd1 {[%clk 1:10:47]} 31... Qc2
{[%clk 0:25:26]} 32. Ra1 {[%clk 0:57:39]} 32... Qb2 {[%clk 0:21:49]} 33. Rad1
{[%clk 0:50:45]} 33... Qe2 {[%clk 0:20:17]} 34. Qe3 {[%clk 0:50:38]} 34... Qxa2
{[%clk 0:19:09]} 35. d6 {[%clk 0:49:48]} 35... Qe6 {[%clk 0:17:03]} 36. Rd2
{[%clk 0:49:24]} 36... Rd8 {[%clk 0:15:48]} 37. Rfd1 {[%clk 0:49:23]} 37... Qc4
{[%clk 0:12:53]} 38. d7 {[%clk 0:48:45]} 38... Qc6 {[%clk 0:12:38]} 39. Rd5
{[%clk 0:44:35]} 39... Qe6 {[%clk 0:10:12]} 40. Qc5 {[%clk 0:44:40]} 40... Qf7
41. Qc7 {[%clk 0:41:13]} 41... Qf8 {[%clk 0:07:43]} 42. Re5 {[%clk 0:40:13]}
42... Rf7 {[%clk 0:07:05]} 43. Qxd8 {[%clk 0:38:48]} 43... Qxd8 {[%clk 0:07:28]}
44. Re8+ {[%clk 0:39:13]} 44... Rf8 {[%clk 0:07:38]} 45. Rxf8+ {[%clk 0:39:38]}
45... Qxf8 {[%clk 0:08:03]} 46. d8=Q {[%clk 0:40:04]} 1-0

[Variant "Standard"]
[Site "Europe Echecs"]